bitfinex/quotes_BTCUSD_20241119
["timestamp","ask_amount","ask_price","bid_price","bid_amount"]
[1732054888045,0.217177,92091.0,92087.0,0.0008536]
[1732054888260,0.108591,92088.0,92087.0,0.0008536]
[1732054888489,0.217173,92093.0,92087.0,0.0008536]
[1732054888712,0.04420759,92097.0,92087.0,0.0008536]
[1732054888946,0.04420759,92097.0,92088.0,0.032577]
[1732054889161,0.0009824,92103.0,92089.0,0.043435]
[1732054889370,0.21715,92102.0,92089.0,0.043435]
[1732054889582,0.108576,92101.0,92095.0,0.032574]
[1732054890050,0.6261,92111.0,92087.0,0.0008536]
[1732054890051,0.0465,92126.0,92093.0,0.023]
[1732054890259,0.0009835,92114.0,92109.0,0.032569]
[1732054890473,0.108561,92114.0,92109.0,0.032569]
[1732054890678,0.325675,92116.0,92108.0,0.03257]
[1732054890886,0.217117,92116.0,92109.0,0.032569]
[1732054891357,0.10906255,92117.0,92108.0,0.03257]
[1732054891358,0.108562,92114.0,92108.0,0.03257]
[1732054891575,0.108562,92113.0,92108.0,0.03257]
[1732054891834,0.108559,92116.0,92106.0,0.043428]
[1732054892062,0.30798855,92126.0,92093.0,0.023]
[1732054892063,0.04439255,92126.0,92093.0,0.023]
[1732054892299,0.10855,92124.0,92094.0,0.11906255]
[1732054892505,0.10855,92123.0,92119.0,0.032566]
[1732054892742,0.10855,92124.0,92119.0,0.032566]
[1732054892978,0.217088,92129.0,92119.0,0.032566]
[1732054892979,0.10855,92123.0,92119.0,0.032566]
[1732054893166,0.10855,92123.0,92118.0,0.032566]
[1732054893410,0.217093,92126.0,92113.0,0.043424]
[1732054893710,0.108558,92116.0,92110.0,0.032569]
[1732054893770,0.108558,92116.0,92095.0,0.023]
[1732054893945,0.108558,92116.0,92111.0,0.032569]
[1732054894377,0.217112,92119.0,92111.0,0.032569]
[1732054894597,0.217112,92119.0,92112.0,0.032569]
[1732054894598,0.108558,92117.0,92112.0,0.032569]
[1732054894729,0.108558,92117.0,92110.0,0.032569]
[1732054894958,0.108558,92117.0,92109.0,0.043426]
[1732054895148,0.108558,92117.0,92112.0,0.032568]
[1732054895773,0.10856,92115.0,92109.0,0.032569]
[1732054895988,0.10856,92115.0,92110.0,0.032569]
[1732054896235,0.10856,92115.0,92099.0,0.043431]
[1732054896236,0.217108,92120.0,92112.0,0.032568]
[1732054896437,0.108557,92117.0,92112.0,0.032568]
[1732054896635,0.108557,92117.0,92109.0,0.043426]
[1732054896636,0.108558,92117.0,92111.0,0.032569]
[1732054896887,0.108558,92117.0,92099.0,0.043431]
[1732054896888,0.217117,92116.0,92092.0,0.0762]
[1732054897083,0.0814,92116.0,92096.0,0.032574]
[1732054897316,0.0814,92116.0,92088.0,0.10906255]
[1732054897575,0.108574,92103.0,92097.0,0.032574]
[1732054897780,0.21714,92107.0,92099.0,0.032573]
[1732054898003,0.108574,92103.0,92097.0,0.032574]
[1732054898216,0.217124,92113.0,92095.0,0.032574]
[1732054898429,0.0823822,92116.0,92092.0,0.032575]
[1732054898430,0.108578,92099.0,92092.0,0.032575]
[1732054898632,0.0823822,92116.0,92092.0,0.032575]
[1732054898633,0.108576,92102.0,92094.0,0.032575]
[1732054899260,0.21714,92107.0,92094.0,0.032575]
[1732054899467,0.108576,92101.0,92094.0,0.032575]
[1732054899673,0.0823822,92116.0,92092.0,0.0008531]
[1732054899674,0.0459,92112.0,92092.0,0.0008531]
[1732054899877,0.108575,92102.0,92094.0,0.032575]
[1732054900112,0.108577,92101.0,92093.0,0.032575]
[1732054900772,0.217138,92108.0,92092.0,0.0238531]
[1732054900989,0.108572,92105.0,92092.0,0.0238531]
[1732054901202,0.108572,92104.0,92096.0,0.032574]
[1732054901440,0.217141,92106.0,92095.0,0.032574]
[1732054901679,0.108574,92104.0,92095.0,0.032574]
[1732054901900,0.108576,92102.0,92095.0,0.032574]
[1732054902318,0.108573,92104.0,92096.0,0.032574]
[1732054903017,0.434258,92111.0,92092.0,0.0008531]
[1732054903237,0.108577,92101.0,92093.0,0.032575]
[1732054903437,0.108577,92101.0,92094.0,0.032575]
[1732054904057,0.434268,92109.0,92092.0,0.0564281]
[1732054904267,0.108576,92101.0,92092.0,0.0564281]
[1732054904464,0.03185055,92127.0,92092.0,0.0564281]
[1732054904465,0.04406677,92111.0,92094.0,0.023]
[1732054904682,0.108569,92107.0,92098.0,0.032573]
[1732054904915,0.217133,92110.0,92098.0,0.032573]
[1732054905148,0.10857,92107.0,92099.0,0.032573]
[1732054905371,0.10857,92107.0,92101.0,0.032572]
[1732054905603,0.10857,92107.0,92097.0,0.023]
[1732054905807,0.04482001,92116.0,92097.0,0.023]
[1732054906005,0.217119,92115.0,92093.0,0.032575]
[1732054906429,0.108578,92100.0,92095.0,0.032574]
[1732054906689,0.108578,92100.0,92096.0,0.032574]
[1732054906933,0.108577,92101.0,92096.0,0.032574]
[1732054908060,0.108577,92101.0,92097.0,0.032574]
[1732054908302,0.108577,92101.0,92095.0,0.032574]
[1732054908303,0.108577,92101.0,92095.0,0.065148]
[1732054910520,0.04482001,92116.0,92090.0,0.023]
[1732054910958,0.04482001,92116.0,92095.0,0.065148]
[1732054910959,0.108577,92101.0,92095.0,0.065148]
[1732054911183,0.04482001,92116.0,92088.0,0.023]
[1732054911403,0.108577,92100.0,92094.0,0.032575]
[1732054911630,0.108577,92100.0,92094.0,0.06515]
[1732054911871,0.217119,92115.0,92091.0,0.023]
[1732054912077,0.217119,92115.0,92091.0,0.0238539]
[1732054912309,0.04482001,92116.0,92091.0,0.0238539]
[1732054912310,0.0017078,92103.0,92096.0,0.032574]
[1732054912525,0.108575,92102.0,92097.0,0.032574]
[1732054912744,0.019575,92102.0,92097.0,0.032574]
[1732054913012,0.108575,92102.0,92097.0,0.032574]
[1732054913673,0.0017078,92103.0,92097.0,0.032574]
[1732054913889,0.1102818,92103.0,92097.0,0.032574]
[1732054914345,0.0017078,92103.0,92095.0,0.032575]
[1732054914577,0.108576,92101.0,92095.0,0.032575]
[1732054914791,0.1102818,92103.0,92097.0,0.032574]
[1732054915244,0.1102818,92103.0,92095.0,0.032574]
[1732054915245,0.108576,92102.0,92095.0,0.032574]
[1732054915472,0.1102818,92103.0,92097.0,0.032574]
[1732054916119,0.1102818,92103.0,92092.0,0.032575]
[1732054916559,0.1102818,92103.0,92082.0,0.01954399]
[1732054916560,0.1102818,92103.0,92097.0,0.032573]
[1732054916786,0.1102818,92103.0,92096.0,0.032574]
[1732054916787,0.0017078,92103.0,92096.0,0.032574]
[1732054918607,0.108575,92102.0,92096.0,0.032574]
[1732054919527,0.108575,92102.0,92097.0,0.032574]
[1732054919742,0.108576,92101.0,92095.0,0.032574]
[1732054920172,0.108577,92101.0,92096.0,0.032574]
[1732054920837,0.3274328,92103.0,92097.0,0.032574]
[1732054921073,0.1102828,92103.0,92098.0,0.032573]
[1732054921300,0.1102828,92103.0,92099.0,0.032573]
[1732054922419,0.0017078,92103.0,92100.0,0.032572]
[1732054922620,0.0017078,92103.0,92102.0,0.032572]
[1732054923290,0.0017078,92103.0,92100.0,0.032572]
[1732054923291,0.0017078,92103.0,92101.0,0.032572]
[1732054923510,0.0017078,92103.0,92100.0,0.032572]
[1732054923725,0.0017078,92103.0,92084.0,0.09736696]
[1732054923940,0.0017078,92103.0,92102.0,0.032572]
[1732054927791,0.26200031,92109.0,92102.0,0.032572]
[1732054928029,0.04486531,92109.0,92105.0,0.032571]
[1732054928258,0.0009905,92115.0,92103.0,0.032572]
[1732054928492,0.108568,92108.0,92103.0,0.065143]
[1732054928715,0.108567,92109.0,92104.0,0.032571]
[1732054928921,0.108568,92108.0,92104.0,0.032571]
[1732054929134,0.0009905,92115.0,92104.0,0.032571]
[1732054929345,0.108567,92109.0,92105.0,0.032571]
[1732054929555,0.108567,92109.0,92104.0,0.032571]
[1732054929785,0.108567,92109.0,92105.0,0.032571]
[1732054930200,0.325689,92112.0,92105.0,0.032571]
[1732054930408,0.217124,92113.0,92105.0,0.065142]
[1732054930626,0.108566,92110.0,92105.0,0.032571]
[1732054931098,0.108564,92111.0,92105.0,0.032571]
[1732054931315,0.217126,92112.0,92105.0,0.032571]
[1732054931545,0.0009905,92115.0,92105.0,0.032571]
[1732054931776,0.108565,92111.0,92106.0,0.032571]
[1732054931996,0.108566,92110.0,92106.0,0.032571]
[1732054932505,0.217105,92121.0,92112.0,0.032568]
[1732054932717,0.108558,92117.0,92112.0,0.032568]
[1732054932939,0.108558,92117.0,92112.0,0.065136]
[1732054933158,0.108558,92117.0,92101.0,0.0008538]
[1732054933159,0.0443766,92122.0,92108.0,0.03257]
[1732054933396,0.10856,92115.0,92108.0,0.03257]
[1732054933629,0.108557,92117.0,92111.0,0.032569]
[1732054933856,0.108557,92117.0,92101.0,0.0008538]
[1732054933857,0.108575,92102.0,92101.0,0.0008538]
[1732054934076,0.21763755,92102.0,92101.0,0.0008538]
[1732054938074,0.26136766,92102.0,92101.0,0.0008538]
[1732054942303,0.53267398,92102.0,92101.0,0.0008538]
[1732054942527,0.38706766,92102.0,92101.0,0.0008538]
[1732054942747,0.46398233,92102.0,92101.0,0.0008538]
[1732054943021,0.29872092,92102.0,92101.0,0.0008538]
[1732054943228,0.38706766,92102.0,92101.0,0.0008538]
[1732054943882,0.55298573,92102.0,92101.0,0.0008538]
[1732054944109,0.40729932,92102.0,92101.0,0.00032642]
[1732054944330,0.55304508,92102.0,92101.0,0.00032642]
[1732054944561,0.108591,92088.0,92087.0,0.000854]
[1732054945519,0.108591,92088.0,92087.0,0.000854]
[1732054946840,0.217157,92099.0,92087.0,0.000854]
[1732054947070,0.325732,92100.0,92087.0,0.000854]
[1732054947377,0.217157,92099.0,92087.0,0.000854]
[1732054947531,0.10859,92090.0,92087.0,0.000854]
[1732054949961,0.217181,92090.0,92087.0,0.000854]
[1732054950185,0.108591,92088.0,92087.0,0.000854]
[1732054954435,0.21765355,92088.0,92087.0,0.000854]
[1732054954662,0.33310215,92088.0,92087.0,0.000854]
[1732054954887,0.29425355,92088.0,92087.0,0.000854]
[1732054955161,0.50538582,92088.0,92087.0,0.000854]
[1732054955384,0.71815977,92088.0,92087.0,0.000854]
[1732054955594,0.75052382,92088.0,92087.0,0.000854]
[1732054955812,0.91238265,92088.0,92087.0,0.000854]
[1732054956054,0.94474306,92088.0,92087.0,0.000854]
[1732054956285,0.50535171,92088.0,92087.0,0.000854]
[1732054956519,0.45680411,92088.0,92087.0,0.000854]
[1732054956730,0.39268947,92088.0,92087.0,0.000854]
[1732054956937,0.36968947,92088.0,92087.0,0.000854]
[1732054957668,0.35968947,92088.0,92087.0,0.000854]
[1732054957831,0.25109847,92088.0,92087.0,0.000854]
[1732054958042,0.23086255,92088.0,92087.0,0.000854]
[1732054958258,0.33945355,92088.0,92087.0,0.000854]
[1732054959752,0.33945355,92088.0,92072.0,0.032582]
[1732054959753,0.33945355,92088.0,92043.0,0.023]
[1732054959754,0.002,92064.0,92043.0,0.023]
[1732054959963,0.002,92064.0,92063.0,0.032586]
[1732054962164,0.002,92070.0,92069.0,0.032584]
[1732054963043,0.01,92066.0,92062.0,0.032586]
[1732054963256,0.01,92066.0,92048.0,0.0766]
[1732054963257,0.002,92067.0,92063.0,0.032586]
[1732054963481,0.002,92068.0,92067.0,0.032584]
[1732054965082,4.002,92068.0,92067.0,0.032584]
[1732054965291,4.0,92068.0,92067.0,0.032584]
[1732054966632,4.002,92068.0,92067.0,0.032584]
[1732054967117,0.002,92047.0,92046.0,0.032592]
[1732054968837,0.01,92062.0,92046.0,0.032592]
[1732054968838,0.108623,92061.0,92055.0,0.032588]
[1732054969068,0.108623,92061.0,92053.0,0.032589]
[1732054969069,0.002,92054.0,92053.0,0.032589]
[1732054972893,0.01,92062.0,92053.0,0.032589]
[1732054973081,0.108623,92061.0,92056.0,0.032588]
[1732054974336,0.05485373,92062.0,92057.0,0.032588]
[1732054974546,0.16347573,92062.0,92056.0,0.032588]
[1732054974762,0.16347573,92062.0,92056.0,0.065176]
[1732054974964,0.16347573,92062.0,92057.0,0.032588]
[1732054975180,0.05485373,92062.0,92058.0,0.032587]
[1732054975383,0.05485373,92062.0,92056.0,0.065176]
[1732054975598,0.108624,92061.0,92056.0,0.065176]
[1732054977448,0.108624,92061.0,92056.0,0.032588]
[1732054977848,0.108627,92059.0,92054.0,0.032589]
[1732054978124,0.108627,92059.0,92053.0,0.0008538]
[1732054978459,0.108624,92061.0,92053.0,0.0334428]
[1732054979098,0.108624,92060.0,92053.0,0.0334428]
[1732054979730,0.108624,92060.0,92053.0,0.03323667]
[1732054980133,0.05485373,92062.0,92054.0,0.032589]
[1732054980134,0.118622,92062.0,92054.0,0.032589]
[1732054980356,0.108629,92057.0,92053.0,0.00064767]
[1732054981193,0.01,92058.0,92053.0,0.00064767]
[1732054981861,0.118627,92058.0,92053.0,0.00064767]
[1732054982073,0.217247,92061.0,92053.0,0.00064767]
[1732054982074,0.203631,92054.0,92053.0,0.00064767]
[1732054982288,0.38189848,92054.0,92053.0,0.00064767]
[1732054984006,0.38189848,92054.0,92000.0,0.11216817]
[1732054984007,0.569,92001.0,92000.0,0.11216817]
[1732054984187,0.569,92001.0,91931.0,0.0004]
[1732054984188,0.242741,91961.0,91931.0,0.0004]
[1732054984451,0.37447322,91961.0,91931.0,0.0004]
[1732054984709,0.52659582,91961.0,91931.0,0.0004]
[1732054984936,0.31894447,91952.0,91931.0,0.0004]
[1732054985165,0.128776,91932.0,91931.0,0.0004]
[1732054985433,0.20896847,91932.0,91931.0,0.0004]
[1732054985600,0.36183855,91932.0,91931.0,0.0004]
[1732054986255,0.37183855,91932.0,91931.0,0.0004]
[1732054986456,0.37183855,91932.0,91891.0,0.0004]
[1732054986457,0.118799,91912.0,91891.0,0.033047]
[1732054986691,0.10906255,91912.0,91891.0,0.0004]
[1732054986900,0.21786155,91912.0,91891.0,0.0004]
[1732054987136,0.10906255,91912.0,91898.0,0.032644]
[1732054987337,0.10906255,91912.0,91895.0,0.032645]
[1732054987338,0.01,91916.0,91895.0,0.032645]
[1732054987607,0.108799,91912.0,91896.0,0.032645]
[1732054988024,0.10906255,91915.0,91892.0,0.032646]
[1732054988187,0.108798,91914.0,91898.0,0.032644]
[1732054988399,0.11906255,91915.0,91892.0,0.032646]
[1732054988617,0.108803,91909.0,91891.0,0.0004]
[1732054989167,0.11906255,91913.0,91893.0,0.032646]
[1732054989584,0.108801,91911.0,91898.0,0.032644]
[1732054989793,0.11906255,91913.0,91898.0,0.032644]
[1732054990018,0.108801,91911.0,91898.0,0.065288]
[1732054990244,0.11906255,91913.0,91898.0,0.065288]
[1732054990245,0.11906255,91913.0,91898.0,0.032644]
[1732054990875,0.11906255,91913.0,91891.0,0.0004]
[1732054990876,0.01,91913.0,91910.0,0.03264]
[1732054991107,0.01,91917.0,91907.0,0.032641]
[1732054991314,0.01,91917.0,91891.0,0.0004]
[1732054991315,0.01,91917.0,91893.0,0.032646]
[1732054991532,0.01,91916.0,91909.0,0.03264]
[1732054991747,0.01,91916.0,91912.0,0.032639]
[1732054992214,0.10906255,91915.0,91903.0,0.032643]
[1732054992447,0.01,91916.0,91907.0,0.032641]
[1732054992666,0.01,91916.0,91906.0,0.032641]
[1732054992852,0.01,91916.0,91908.0,0.0334957]
[1732054993304,0.01,91916.0,91909.0,0.03264]
[1732054993533,0.01,91916.0,91908.0,0.0008547]
[1732054993740,0.01,91916.0,91909.0,0.03264]
[1732054994329,0.01,91916.0,91910.0,0.03264]
[1732054994526,0.01,91915.0,91910.0,0.03264]
[1732054994904,0.01,91915.0,91908.0,0.0008547]
[1732054995119,0.01,91915.0,91909.0,0.03264]
[1732054995507,0.01,91915.0,91910.0,0.03264]
[1732054995929,0.01,91915.0,91914.0,0.032638]
[1732054996163,0.01,91918.0,91908.0,0.0008547]
[1732054996394,0.01,91913.0,91912.0,0.032639]
[1732054997013,0.01,91917.0,91916.0,0.032638]
[1732054997498,0.01,91919.0,91918.0,0.032637]
[1732054997705,0.01,91921.0,91920.0,0.032637]
[1732054997948,0.0009965,91930.0,91908.0,0.0008547]
[1732054997949,0.01,91914.0,91913.0,0.032639]
[1732054998650,0.01,91914.0,91908.0,0.0008547]
[1732054998651,0.01,91913.0,91908.0,0.0008547]
[1732054998899,0.01,91913.0,91912.0,0.032639]
[1732054999524,0.01,91913.0,91908.0,0.0008547]
[1732054999525,0.01,91926.0,91925.0,0.032635]
[1732054999789,0.01,91929.0,91925.0,0.032635]
[1732054999969,0.26007729,91951.0,91923.0,0.032635]
[1732054999970,0.01,91933.0,91932.0,0.032632]
[1732055000632,0.01,91941.0,91905.0,0.01]
[1732055000844,0.01,91933.0,91932.0,0.032632]
[1732055001480,0.01,91933.0,91909.0,0.10906255]
[1732055001682,0.01,91937.0,91936.0,0.032631]
[1732055001887,0.01,91933.0,91930.0,0.032633]
[1732055002356,0.01,91933.0,91932.0,0.032632]
[1732055002566,0.00967361,91941.0,91940.0,0.032629]
[1732055003009,0.04344825,91950.0,91938.0,0.03263]
[1732055003246,0.108758,91947.0,91940.0,0.032629]
[1732055003471,0.108758,91947.0,91940.0,0.065258]
[1732055003710,0.21781955,91949.0,91941.0,0.032629]
[1732055003914,0.108758,91948.0,91942.0,0.032629]
[1732055005772,0.1674675,91951.0,91950.0,0.032626]
[1732055006221,0.0903675,91951.0,91950.0,0.032626]
[1732055007341,0.43613183,91963.0,91948.0,0.032627]
[1732055007546,0.0474,91977.0,91959.0,0.032623]
[1732055007547,0.10906255,91962.0,91959.0,0.032623]
[1732055007781,0.10906255,91963.0,91938.0,0.03263]
[1732055007985,0.15287942,91963.0,91937.0,0.03263]
[1732055008143,0.10906255,91963.0,91959.0,0.032623]
[1732055008424,0.10906255,91963.0,91961.0,0.032622]
[1732055008589,0.10906255,91963.0,91937.0,0.097892]
[1732055008790,0.12284473,91966.0,91938.0,0.10906255]
[1732055008996,0.0009854,91963.0,91945.0,0.023]
[1732055009220,0.0009854,91963.0,91944.0,0.042628]
[1732055009221,0.0009854,91963.0,91962.0,0.032622]
[1732055009395,0.04408596,91977.0,91974.0,0.032617]
[1732055009603,0.217425,91986.0,91955.0,0.04507408]
[1732055009810,0.217425,91986.0,91947.0,0.11]
[1732055009811,0.02000248,91984.0,91971.0,0.032618]
[1732055010020,0.02000248,91983.0,91982.0,0.032614]
[1732055010231,0.02000248,91983.0,91976.0,0.032617]
[1732055010429,0.02000248,91982.0,91979.0,0.032615]
[1732055010646,0.02001163,91981.0,91958.0,0.032623]
[1732055010871,0.02001163,91981.0,91957.0,0.10906255]
[1732055010872,0.0483812,91993.0,91984.0,0.032614]
[1732055011091,0.217412,91991.0,91978.0,0.032616]
[1732055011290,0.25615236,91990.0,91974.0,0.032617]
[1732055011503,0.25615236,91990.0,91941.0,0.01]
[1732055011504,0.108712,91986.0,91978.0,0.032616]
[1732055011723,0.02001252,91985.0,91976.0,0.032617]
[1732055011951,0.10906255,91986.0,91978.0,0.032616]
[1732055011952,0.02001252,91984.0,91978.0,0.032616]
[1732055012168,0.02001252,91984.0,91976.0,0.032617]
[1732055012169,0.02001252,91983.0,91976.0,0.032617]
[1732055012403,0.02001252,91982.0,91976.0,0.032617]
[1732055012616,0.02001252,91981.0,91979.0,0.032616]
[1732055012829,0.02001252,91980.0,91979.0,0.032616]
[1732055013245,0.02001252,91980.0,91978.0,0.032616]
[1732055013500,0.21777455,91986.0,91978.0,0.032616]
[1732055013731,0.14091704,91985.0,91978.0,0.032616]
[1732055013953,0.05232994,91984.0,91978.0,0.032616]
[1732055014196,0.05232994,91983.0,91953.0,0.1305]
[1732055014413,0.05232994,91982.0,91978.0,0.032616]
[1732055014621,0.05232994,91981.0,91978.0,0.032616]
[1732055014864,0.05232994,91980.0,91978.0,0.032616]
[1732055015069,0.108725,91976.0,91968.0,0.032619]
[1732055015371,0.108727,91974.0,91966.0,0.03262]
[1732055015596,0.0201269,91973.0,91967.0,0.03262]
[1732055015824,0.0201269,91972.0,91968.0,0.032619]
[1732055016072,0.0201269,91971.0,91966.0,0.03262]
[1732055016282,0.0201269,91970.0,91966.0,0.03262]
[1732055016428,0.0201269,91969.0,91956.0,0.032624]
[1732055016633,0.10906255,91976.0,91968.0,0.03262]
[1732055016859,0.05234271,91975.0,91971.0,0.032618]
[1732055017058,0.02013181,91974.0,91971.0,0.032618]
[1732055017265,0.05234271,91973.0,91967.0,0.03262]
[1732055017469,0.10906255,91976.0,91967.0,0.03262]
[1732055017470,0.05234271,91972.0,91967.0,0.03262]
[1732055017674,0.045,91967.0,91949.0,0.032626]
[1732055017876,0.045,91967.0,91926.0,0.01]
[1732055017877,0.16140003,91966.0,91926.0,0.01]
[1732055018045,0.16140003,91966.0,91948.0,0.032627]
[1732055018046,0.05233748,91965.0,91948.0,0.032627]
[1732055018270,0.108741,91962.0,91953.0,0.032625]
[1732055018426,0.05233748,91961.0,91930.0,0.032633]
[1732055018656,0.05233748,91961.0,91928.0,0.065268]
[1732055018657,0.05233748,91960.0,91954.0,0.032624]
[1732055018870,0.05233748,91960.0,91959.0,0.032623]
[1732055019069,0.0009812,91966.0,91965.0,0.032621]
[1732055019281,0.02012915,91966.0,91965.0,0.032621]
[1732055019504,0.02012915,91966.0,91959.0,0.032623]
[1732055019505,0.0450342,91982.0,91959.0,0.032623]
[1732055019740,0.0523474,91981.0,91980.0,0.032615]
[1732055020968,0.0523474,91981.0,91952.0,0.0440156]
[1732055021230,0.083,91986.0,91952.0,0.0440156]
[1732055021231,0.0523474,91980.0,91979.0,0.032616]
[1732055021431,0.0523474,91980.0,91976.0,0.032616]
[1732055021731,0.0523474,91979.0,91978.0,0.032616]
[1732055022315,0.108733,91969.0,91943.0,0.032628]
[1732055022465,0.16140995,91968.0,91943.0,0.032628]
[1732055022670,0.0523474,91967.0,91962.0,0.032622]
[1732055022952,0.0523474,91966.0,91962.0,0.032622]
[1732055023157,0.0523474,91965.0,91962.0,0.032622]
[1732055023287,0.0523474,91964.0,91961.0,0.032622]
[1732055023488,0.0523474,91963.0,91961.0,0.032622]
[1732055023735,0.10906255,91967.0,91961.0,0.032622]
[1732055023736,0.0523474,91962.0,91961.0,0.032622]
[1732055023942,0.05243652,91962.0,91961.0,0.032622]
[1732055024147,0.10906255,91967.0,91962.0,0.032622]
[1732055024703,0.23764164,91966.0,91961.0,0.0008546]
[1732055024917,0.10874,91962.0,91961.0,0.0008546]
[1732055025136,0.12891064,91962.0,91961.0,0.0008546]
[1732055025345,0.16118777,91962.0,91961.0,0.0008546]
[1732055026497,0.31615032,91962.0,91961.0,0.0008546]
[1732055027238,0.34670255,91962.0,91961.0,0.0008546]
[1732055027449,0.39921673,91962.0,91961.0,0.0008546]
[1732055027661,0.44333954,91962.0,91961.0,0.0008546]
[1732055027869,0.108762,91944.0,91938.0,0.03263]
[1732055028071,0.05251418,91943.0,91929.0,0.043511]
[1732055028276,0.0660887,91942.0,91940.0,0.032629]
[1732055028460,0.217512,91949.0,91940.0,0.032629]
[1732055028461,0.0660887,91941.0,91940.0,0.032629]
[1732055032217,0.05255502,91926.0,91916.0,0.34451526]
[1732055032437,0.217565,91927.0,91916.0,0.34451526]
[1732055032438,0.16133902,91925.0,91920.0,0.032636]
[1732055032661,0.05255502,91924.0,91917.0,0.043517]
[1732055032898,0.217556,91930.0,91917.0,0.043517]
[1732055033110,0.108784,91926.0,91919.0,0.032637]
[1732055033311,0.108784,91926.0,91920.0,0.032636]
[1732055033523,0.108783,91926.0,91920.0,0.032636]
[1732055033727,0.217556,91930.0,91920.0,0.032636]
[1732055033936,0.32660155,91938.0,91912.0,0.0008551]
[1732055033937,0.37220155,91938.0,91912.0,0.0008551]
[1732055034150,0.15466255,91938.0,91912.0,0.0334941]
[1732055034369,0.10879,91921.0,91913.0,0.032639]
[1732055034580,0.15466255,91938.0,91915.0,0.032638]
[1732055034785,0.1,91937.0,91912.0,0.0008551]
[1732055034993,0.10879,91921.0,91916.0,0.032638]
[1732055035205,0.10879,91921.0,91912.0,0.0008551]
[1732055035206,0.217554,91931.0,91912.0,0.0008551]
[1732055035436,0.108798,91913.0,91912.0,0.0008551]
[1732055035908,0.217581,91920.0,91912.0,0.0008551]
[1732055036120,0.217572,91924.0,91912.0,0.0008551]
[1732055036350,0.1,91929.0,91912.0,0.0008551]
[1732055036579,0.0761,91932.0,91912.0,0.0008551]
[1732055036580,0.10906255,91913.0,91912.0,0.0008551]
[1732055036846,0.43956055,91913.0,91912.0,0.0008551]
[1732055039621,0.33076255,91913.0,91912.0,0.0008551]
[1732055039823,0.43956055,91913.0,91912.0,0.0008551]
[1732055043267,0.04481229,91913.0,91912.0,0.0334941]
[1732055043497,0.0761,91925.0,91912.0,0.0334941]
[1732055043498,0.1,91920.0,91913.0,0.032639]
[1732055043740,0.108789,91921.0,91912.0,0.0008551]
[1732055043972,0.1,91922.0,91916.0,0.032638]
[1732055044210,0.20906255,91922.0,91916.0,0.065276]
[1732055044472,0.20906255,91922.0,91912.0,0.0008551]
[1732055044686,0.108791,91920.0,91913.0,0.032639]
[1732055044912,0.10906255,91922.0,91912.0,0.0008551]
[1732055045140,0.108789,91921.0,91914.0,0.032638]
[1732055045585,0.1,91924.0,91912.0,0.0008551]
[1732055047792,0.1,91932.0,91924.0,0.032635]
[1732055047998,0.108777,91931.0,91925.0,0.032635]
[1732055048205,0.208776,91932.0,91926.0,0.032634]
[1732055048412,0.1,91933.0,91925.0,0.032635]
[1732055048623,0.108776,91932.0,91926.0,0.032634]
[1732055048828,0.1,91933.0,91926.0,0.032634]
[1732055049042,0.1,91935.0,91926.0,0.032634]
[1732055049261,0.108772,91935.0,91930.0,0.032633]
[1732055049466,0.26275768,91936.0,91930.0,0.032633]
[1732055049674,0.26275768,91936.0,91935.0,0.032631]
[1732055049675,0.04492413,91936.0,91935.0,0.032631]
[1732055049910,0.04492413,91936.0,91924.0,0.0008546]
[1732055049911,0.000993,91949.0,91942.0,0.032629]
[1732055050145,0.000993,91949.0,91924.0,0.0008546]
[1732055050146,0.000993,91949.0,91944.0,0.032628]
[1732055050394,0.108756,91949.0,91943.0,0.032628]
[1732055050641,0.04417841,91949.0,91924.0,0.10991715]
[1732055050859,0.0815,91952.0,91924.0,0.10991715]
[1732055050860,0.0815,91952.0,91946.0,0.032627]
[1732055051088,0.12480913,91952.0,91944.0,0.032628]
[1732055051321,0.12480913,91952.0,91947.0,0.032627]
[1732055051565,0.23356113,91952.0,91947.0,0.032627]
[1732055051804,0.12480913,91952.0,91947.0,0.032627]
[1732055052281,0.108753,91951.0,91945.0,0.065256]
[1732055052514,0.12480913,91952.0,91947.0,0.032627]
[1732055053854,0.04330913,91952.0,91951.0,0.032626]
[1732055054152,0.1457,91960.0,91951.0,0.032625]
[1732055054153,0.108746,91958.0,91951.0,0.032625]
[1732055054400,0.1457,91960.0,91938.0,0.03263]
[1732055054401,0.04403986,91960.0,91938.0,0.03263]
[1732055054631,0.1097311,91966.0,91960.0,0.032622]
[1732055054848,0.1097311,91966.0,91956.0,0.032624]
[1732055054849,0.0009951,91966.0,91962.0,0.032621]
[1732055055051,0.04415457,91966.0,91962.0,0.065242]
[1732055055278,0.04415457,91966.0,91950.0,0.032626]
[1732055055279,0.108736,91966.0,91959.0,0.032623]
[1732055055714,0.34455429,91964.0,91927.0,0.179734]
[1732055055929,0.108749,91955.0,91948.0,0.032627]
[1732055056131,0.1,91962.0,91952.0,0.032625]
[1732055056350,0.10906255,91961.0,91929.0,0.032633]
[1732055056567,0.108746,91958.0,91951.0,0.032625]
[1732055056772,0.108745,91958.0,91951.0,0.032625]
[1732055056997,0.108749,91955.0,91949.0,0.065252]
[1732055057212,0.108749,91955.0,91949.0,0.032626]
[1732055057644,0.108746,91957.0,91950.0,0.032626]
[1732055057860,0.10906255,91961.0,91949.0,0.032626]
[1732055058078,0.108749,91955.0,91949.0,0.032626]
[1732055058297,0.108749,91955.0,91946.0,0.032627]
[1732055058298,0.10906255,91961.0,91950.0,0.032626]
[1732055058521,0.108747,91957.0,91951.0,0.032626]
[1732055058741,0.108744,91959.0,91939.0,0.03263]
[1732055058957,0.108744,91959.0,91940.0,0.032629]
[1732055058958,0.10906255,91959.0,91940.0,0.032629]
[1732055059194,0.10875,91954.0,91948.0,0.032626]
[1732055059403,0.21749,91958.0,91946.0,0.032627]
[1732055059404,0.326235,91958.0,91946.0,0.032627]